Cogmind - Beta 14 @@@ ROGUE MODE // 2024.08.07 @ 16:55:16 Player: Daffa0360 Result: Self-destructed Performance ------------- Evolutions (1) 500 Regions Visited (3) 600 Robots Destroyed (22) 110 Value Destroyed (638) 638 Prototype IDs (0) 0 Alien Tech Used (0) 0 Bonus (0) 0 TOTAL SCORE: 1848 Bonus ------- None Cogmind --------- Core Integrity 313/400 Matter 277/300 Energy 265/265 System Corruption 0% Temperature Cool (33) Movement Walking (190) Ox1 Location -9/Materials Parts ------- > --- POWER (1) -------- Improved Ion Engine > --- PROPULSION (2) --- Aluminum Leg > --- UTILITY (4) ------ Small Storage Unit Sensor Array Signal Interpreter > --- WEAPON (2) ------- Small Laser Heavy Assault Rifle > --- INVENTORY (8) ---- Ion Engine Light Nuclear Core Structural Scanner ECM Suite Beam Cannon Grenade Launcher Mining Laser Peak State ------------ > --- POWER ------------ Ion Engine > --- PROPULSION ------- Aluminum Leg Aluminum Leg > --- UTILITY ---------- Small Storage Unit Sensor Array Signal Interpreter > --- WEAPON ----------- Small Laser Heavy Assault Rifle > --- INVENTORY -------- Ion Engine Improved Ion Engine Light Nuclear Core Structural Scanner ECM Suite Grenade Launcher Mining Laser [Rating: 10] Favorites ----------- Power Light Ion Engine Engine Light Ion Engine Propulsion Aluminum Leg Leg Aluminum Leg Utility Small Storage Unit Device Sensor Array Storage Small Storage Unit Processor Signal Interpreter Protection Weapon Shielding Weapon Light Assault Rifle Energy Gun Small Laser Ballistic Gun Light Assault Rifle Launcher Grenade Launcher Build | -11 -10 -10 -9 ------- Run | Yrd Mat Min Mat Slots Evolved 2 | . . . 2 Power . | . . . . Propulsion . | . . . . Utility 2 | . . . 2 Weapon . | . . . . Parts Attached 25 | 6 3 4 12 Power 3 | 1 . 1 1 Engine 3 | 1 . 1 1 Core . | . . . . Reactor . | . . . . Propulsion 8 | 2 . 2 4 Treads . | . . . . Leg 8 | 2 . 2 4 Wheel . | . . . . Hover . | . . . . Flight . | . . . . Utility 4 | 1 1 . 2 Device 1 | . . . 1 Storage 1 | 1 . . . Processor 1 | . . . 1 Hackware . | . . . . Protection 1 | . 1 . . Artifact . | . . . . Weapon 10 | 2 2 1 5 Energy Gun 2 | 1 . . 1 Energy Cannon . | . . . . Ballistic Gun 7 | 1 2 . 4 Ballistic Cannon . | . . . . Launcher 1 | . . 1 . Special Weapon . | . . . . Impact Weapon . | . . . . Slashing Weapon . | . . . . Piercing Weapon . | . . . . Special Melee Weapon . | . . . . Unidentified Prototypes . | . . . . Parts Lost 6 | . . . 6 Power . | . . . . Propulsion 3 | . . . 3 Utility 1 | . . . 1 Weapon 2 | . . . 2 Highest Loss Streak 2 | . . . 2 To Critical Strikes . | . . . . Average Slot Usage (%) 91 | . 92 100 84 Engine 13 | . 14 14 11 Leg 25 | . 28 28 20 Device 2 | . . . 8 Storage 13 | . 14 14 11 Processor 2 | . . . 8 Protection 7 | . 6 14 3 Energy Gun 3 | . 3 . 4 Ballistic Gun 19 | . 24 16 15 Launcher 3 | . . 11 . Peak Build Rating 10 | 6 7 7 10 Average Rating 7 | 4 6 7 8 On Entrance 5 | . 6 7 7 Naked Turns . | . . . . Heaviest Build 17 | 10 12 16 17 Greatest Support 20 | 20 20 20 20 Greatest Overweight (x) 1 | . . . 1 Average Overweight (x) . | . . . . Largest Inventory Capacity 8 | 8 8 8 8 Average Capacity 7 | 6 8 8 8 Most Carried 8 | 4 7 8 8 Average Carried 5 | . 4 7 7 Final Capacity 8 | 8 8 8 8 Final Carried 8 | . 7 8 7 Class Distribution -------------------- 78% | Mutant 21% | Scavenger-Mutant Dominant Class ---------------- Mutant | -10/Materials Mutant | -10/Mines Scavenger-Mutant | -9/Materials Resources | -11 -10 -10 -9 ----------- Run | Yrd Mat Min Mat Matter Collected 753 | 225 110 131 287 Remotely . | . . . . Salvage Created 849 | . 131 172 546 Parts 49 | . 14 4 31 Haulers Intercepted 1 | . . . 1 Recyclers Shooed . | . . . . Parts Field Recycled . | . . . . Retrieved Matter . | . . . . Parts Self-Destructed . | . . . . Prevented . | . . . . Kills | -11 -10 -10 -9 ------- Run | Yrd Mat Min Mat Combat Hostiles Destroyed 21 | . 5 5 11 Guns 18 | . 5 2 11 AOE 3 | . . 3 . Classes Destroyed 7 | . 3 2 2 Hauler 1 | . . . 1 Recycler 1 | . . 1 . Watcher 2 | . 1 . 1 Swarmer 4 | . 3 . 1 Grunt 11 | . 2 2 7 Sentry 3 | . . . 3 Assembled 3 | . . 3 . Best Kill Streak 4 | . 4 3 2 Combat Bots Only 3 | . 3 2 2 Max Kills in Single Turn 3 | . 1 3 1 Gunslinging . | . . . . Exploded 2 | . . 2 . Melee . | . . . . Uniques/NPCs Destroyed . | . . . . Combat | -11 -10 -10 -9 -------- Run | Yrd Mat Min Mat Hostile Shots Fired 122 | . 28 14 80 Missed 30 | . 9 4 17 Damage Taken 1191 | . 217 164 810 Core 145 | . 36 22 87 Absorbed by Shields . | . . . . Redirected to Shielding 50 | . 9 13 28 Core Remaining (%) 88 | 100 . 76 . Volleys Fired 98 | . 18 13 67 Largest 2 | . 2 2 2 Hottest 63 | . 60 50 63 Shots Fired 192 | . 36 25 131 Gun 187 | . 36 20 131 Cannon . | . . . . Launcher 5 | . . 5 . Special . | . . . . Kinetic 160 | . 32 20 108 Thermal 27 | . 4 . 23 Explosive 5 | . . 5 . Electromagnetic . | . . . . Robot Hit Streak 23 | . 3 5 23 Robot Miss Streak 6 | . 6 2 3 Penetration Max . | . . . . Secondary Targets 3 | . 1 . 2 Max Gunslinging Chain 1 | . 1 . 1 Shots Hit Robots 131 | . 13 18 100 Core Hits 55 | . 9 14 32 Critical Kills . | . . . . Critical Parts Destroyed 3 | . 1 1 1 Critical Strikes 3 | . 1 1 1 Destroy 3 | . 1 1 1 Melee Attacks . | . . . . Impact . | . . . . Slashing . | . . . . Piercing . | . . . . Sneak Attacks . | . . . . Combat Hostiles . | . . . . Follow-up Attacks . | . . . . Damage Inflicted 1545 | . 169 313 1063 Guns 1379 | . 169 147 1063 Cannons . | . . . . Explosions 166 | . . 166 . Melee . | . . . . Ramming . | . . . . Kinetic 1158 | . 157 147 854 Thermal 261 | . 12 40 209 Explosive 126 | . . 126 . Electromagnetic . | . . . . Impact . | . . . . Slashing . | . . . . Piercing . | . . . . Highest Corruption . | . . . . Average Corruption . | . . . . Corruption Purged . | . . . . Corruption Blocked . | . . . . Overload Shots . | . . . . Overflow Damage . | . . . . Projectiles . | . . . . Explosions . | . . . . Melee . | . . . . Knockbacks . | . . . . Impact . | . . . . Kinetic . | . . . . Secondary . | . . . . Self-Inflicted Damage 29 | . . 29 . Shots 3 | . . 3 . Rammed . | . . . . Targets Rammed . | . . . . Kicked . | . . . . Crushed . | . . . . Highest Temperature 38 | . 38 27 33 Average Temperature 10 | . 15 10 10 Received Heat Transfer 539 | . 51 107 381 Siege Activations . | . . . . Robots Corrupted . | . . . . Combat Hostiles . | . . . . Parts Fried . | . . . . Impact Corruptions . | . . . . Robots Melted . | . . . . Combat Hostiles . | . . . . Parts Melted 2 | . . . 2 Heat Transferred 525 | . 25 50 450 Parts Sabotaged . | . . . . Parts Stolen . | . . . . Parts Stripped . | . . . . Power Chain Reactions . | . . . . Alert | -11 -10 -10 -9 ------- Run | Yrd Mat Min Mat Peak Influence 381 | . 108 152 381 Initial 59 | . . 41 59 Average 110 | . 50 93 210 Maximum Alert Level 1 | . . . 1 Low Security (%) 81 | 100 100 100 42 Level 1 18 | . . . 57 Level 2 . | . . . . Level 3 . | . . . . Level 4 . | . . . . Level 5 . | . . . . High Security . | . . . . Max Security . | . . . . Squads Dispatched 2 | . 1 . 1 Investigation 1 | . . . 1 Extermination . | . . . . Reinforcement 1 | . 1 . . Assault . | . . . . Garrison . | . . . . Intercept . | . . . . Searches Triggered . | . . . . Construction Impeded . | . . . . Haulers Reinforced . | . . . . Active Scanning Responses . | . . . . Cargo Convoy Interrupts . | . . . . Stealth | -11 -10 -10 -9 --------- Run | Yrd Mat Min Mat Distress Signals 1 | . . . 1 Communications Jammed . | . . . . Distress Signals . | . . . . Times Spotted 41 | . 12 10 19 Peak Tracking Total 8 | . 3 8 6 Tactical Retreats 4 | . 1 1 2 Traps | -11 -10 -10 -9 ------- Run | Yrd Mat Min Mat Traps Triggered 1 | . 1 . . Indirectly . | . . . . Trap Hack Attempts . | . . . . Triggered . | . . . . Disarmed . | . . . . Reprogrammed . | . . . . Reused . | . . . . Traps Extracted . | . . . . Installed . | . . . . Triggered . | . . . . Machines | -11 -10 -10 -9 ---------- Run | Yrd Mat Min Mat Machines Disabled 1 | . . 1 . Max in Single Turn 1 | . . 1 . Machines Repaired . | . . . . Machines Dismantled . | . . . . Machines Sabotaged . | . . . . Overloaded Fab Kills . | . . . . Hacking | -11 -10 -10 -9 --------- Run | Yrd Mat Min Mat Machines Accessed 4 | . 2 1 1 Terminals 4 | . 2 1 1 Fabricators . | . . . . Repair Stations . | . . . . Recycling Units . | . . . . Scanalyzers . | . . . . Garrison Access . | . . . . Total Hacks 11 | . 7 2 2 Successful 5 | . 3 1 1 Failed 6 | . 4 1 1 Catastrophic 1 | . . . 1 Database Lockouts . | . . . . Manual . | . . . . Terminals 11 | . 7 2 2 Fabricators . | . . . . Repair Stations . | . . . . Recycling Units . | . . . . Scanalyzers . | . . . . Garrison Access . | . . . . Terminal Hacks 5 | . 3 1 1 Robot Analysis 1 | . 1 . . Level Access Points 1 | . 1 . . Alert Level 1 | . . . 1 Locate Traps 1 | . 1 . . Zone Layout 1 | . . 1 . Fabricator Hacks . | . . . . Repair Station Hacks . | . . . . Recycling Unit Hacks . | . . . . Scanalyzer . | . . . . Garrison Access Hacks . | . . . . Unauthorized Hacks . | . . . . Terminals . | . . . . Fabricators . | . . . . Repair Stations . | . . . . Recycling Units . | . . . . Scanalyzers . | . . . . Garrison Access . | . . . . Data Cores Recovered . | . . . . Used . | . . . . Hacking Detections 4 | . 2 1 1 Full Trace Events 2 | . 1 . 1 Feedback Events . | . . . . Feedback Blocked . | . . . . Robot Schematics Acquired . | . . . . Robots Built . | . . . . Authchips . | . . . . Time . | . . . . Total Robot Build Rating . | . . . . Part Schematics Acquired . | . . . . Parts Built . | . . . . Authchips . | . . . . Time . | . . . . Total Part Build Rating . | . . . . Parts Repaired . | . . . . Time . | . . . . Parts Recycled . | . . . . Recycled Matter . | . . . . Retrieved Matter . | . . . . Retrieved Components . | . . . . Parts Scanalyzed . | . . . . Part Schematics Acquired . | . . . . Parts Damaged . | . . . . Bothacking | -11 -10 -10 -9 ------------ Run | Yrd Mat Min Mat Used RIF Installer . | . . . . Robots Hacked . | . . . . Non-combat . | . . . . Combat . | . . . . Robot Hacks Applied . | . . . . Relay Couplers Released . | . . . . Fabnet Peak Effective % . | . . . . Robots Rewired . | . . . . Allies Hacked . | . . . . Hacks Repelled . | . . . . Allies | -11 -10 -10 -9 -------- Run | Yrd Mat Min Mat Total Allies . | . . . . Largest Group . | . . . . Highest-Rated Group . | . . . . Highest-Rated Ally . | . . . . Total Orders . | . . . . Ally Attacks . | . . . . Total Damage . | . . . . Kills . | . . . . Allies Corrupted . | . . . . Allies Melted . | . . . . Intel | -11 -10 -10 -9 ------- Run | Yrd Mat Min Mat Robot Analysis Total 1 | . 1 . . Derelict Logs Recovered 2 | . . 2 . Drone Launches . | . . . . Drone Recoveries . | . . . . Exploration | -11 -10 -10 -9 ------------- Run | Yrd Mat Min Mat Turns Passed 1606 | 62 638 395 511 Spaces Moved 858 | 49 341 268 200 Core 12 | 12 . . . Treads . | . . . . Legs 846 | 37 341 268 200 Wheels . | . . . . Hover . | . . . . Flight . | . . . . Fastest Speed 50 | 50 120 120 120 Average Speed 120 | 102 120 120 125 Slowest Speed 190 | 120 120 120 190 Overloaded Moves . | . . . . Propulsion Burnouts . | . . . . Robots Hopped . | . . . . Cave-ins Triggered . | . . . . Exploration Rate (%) 35 | 3 55 63 19 Regions Visited 3 Branch Regions 1 Pre-discovered Areas . | . . . . Known Exits Taken 1 | . . 1 . Unknown Exits Taken 2 | 1 1 . . Scrap Searched . | . . . . Spaces Dug . | . . . . Terrain Destroyed 31 | . . 31 . Melee . | . . . . Projectile . | . . . . AOE 31 | . . 31 . Terrain Rammed . | . . . . Walls Destroyed . | . . . . Machines Disabled . | . . . . Actions | -11 -10 -10 -9 --------- Run | Yrd Mat Min Mat Total 1253 | 60 537 318 338 Wait 243 | . 168 28 47 Move 855 | 48 340 267 200 Hop . | . . . . Pick Up 24 | 6 8 3 7 Fast Attach 3 | . . . 3 Attach 11 | 6 1 . 4 Detach . | . . . . Swap 11 | . 2 4 5 Drop 8 | . . 3 5 Fire 98 | . 18 13 67 Melee . | . . . . Ram . | . . . . Kick . | . . . . Crush . | . . . . Escape Stasis . | . . . . Rewire . | . . . . Trap . | . . . . Miscellaneous . | . . . . Route ------- -11/Scrapyard -10/Materials (discovered 5 exits: *Mat x3 / *Min x2) -10/Mines (discovered 2 exits: *Mat x2) -9/Materials (discovered 2 exits: *Mat / Sto) History --------- Turn | Location | Event 8 | -11/Scrapyard | Discovered new exit (range 16) 63 | -11/Scrapyard | Entered Materials 73 | -10/Materials | Identified exit to Materials 179 | -10/Materials | Discovered new exit (range 6) 315 | -10/Materials | Build established: Mutant 599 | -10/Materials | Discovered new exit (range 15) 701 | -10/Materials | Entered Mines 776 | -10/Mines | Assembled infested the area 809 | -10/Mines | Learned location of 1 exit from Materials 838 | -10/Mines | Discovered exit to Materials (range 14) 1080 | -10/Mines | Discovered exit to Materials (range 6) 1096 | -10/Mines | Entered Materials 1096 | -9/Materials | Evolved 2 slots: Utility x2 1097 | -9/Materials | Identified exit to Storage 1098 | -9/Materials | Identified exit to Materials 1607 | -9/Materials | Self-destructed Last Messages --------------- 01474_ Dropped Ion Engine. 01475_ Acquired 10 matter. 01477_ K-01 Serf collects debris. 01514_ Acquired Beam Cannon. 01519_ A-02 Transporter sends out distress signal. 01525_ Transport Network Coupler melted. 01525_ Weight Redist. System melted. 01525_ A-02 Transporter destroyed. 01534_ Aluminum Leg destroyed. 01540_ Y-45 Defender destroyed. 01543_ Acquired 22 matter. 01558_ Acquired Aluminum Leg. 01562_ Connecting with Terminal... >>Alert(Check) Current Alert Level: 1-B 01562_ ALERT: Suspicious activity at Terminal M003. Dispatching Investigation squad. 01575_ G-34 Mercenary destroyed. 01600_ Aluminum Leg destroyed. Map ----- +----------------------------------------------------+ | ????????# ##########+###############+# | | ????????# # # #?# | | ????????# ] ! # # #?# | | ????????# # # #?#""" | | ????????# ! !* # # """ """ """ #?#""" | | ????????# =%!# # """ """ """ #?#""" | | ????????###########+### ?# """ """ """ #?# | | ################# ### ##################?##### | | #????????????????? | | #????????????????? | | #????????????????? | | ??############### ####### #????????????????? | | ????????????????#######?????# #????????????????? | | ???????????????????#######??# #??????? ???????? | | ???????????????????# #### x #??? ???????? | | ???????????????????# # #??????? | | ???????????????????# + #??????? | | ???????????????????# = # #??????? | | ???????????????????# !!!#####r##????????????????? | | ???????????????????##!!%######/#?????????????????? | | ????????????????????# !!# T #?????????????????? | | ????????????????????# =%#% #?????????????????? | | ????????????????????# [=+* ]]! #?????????????????? | | ????????????????????# #g ] ! #?????????????????? | | ????????????????????# # ]! #?????????????????? | | ????????????????????# x#@ #?????????????????? | | ??????????????????? ### ####?????????????????? | | ?????????????????? #?###????????????????????? | | ????????????????? #????????????????????????? | | ????????????????#+### #????????????????????????? | | ????????????????????# ?????????????????????????? | | ????????????????????# < ?????????????????????????? | | ????????????????????# ?????????????????????????? | | ????????????????????####?????????????????????????? | | ?????????????????????????????????????????????????? | | ?????????????????????????????????????????????????? | | ?????????????????????????????????????????????????? | | ?????????????????????????????????????????????????? | | ?????????????????????????????????????????????????? | | ?????????????????????????????????????????????????? | | ?????????????????????????????????????????????????? | | ?????????????????????????????????????????????????? | | ?????????????????????????????????????????????????? | | ?????????????????????????????????????????????????? | | ?????????????????????????????????????????????????? | | ?????????????????????????????????????????????????? | | ?????????????????????????????????????????????????? | | ?????????????????????????????????????????????????? | | | | | +----------------------------------------------------+ Best States ------------- Heat Dissipation 28 Energy Generation 12 Energy Capacity 265 Matter Stores 300 Matter Capacity 300 Sight Range 16 Robot Scan Range 14 Terrain Scan Density 10 Weapon Shielding 33 Evasion (%) 55 Item Schematics ----------------- None Robot Schematics ------------------ None Fabricated ------------ Nothing Alien Tech Used ----------------- None Achievements -------------- None Challenges ------------ None Game ------ Seed LinkedCooledStreamer Manual? 0 Play Time 00:27:57 Cumulative 25.1 hours Start 2024.08.06 @ 21:20:58 End 2024.08.07 @ 16:55:16 Sessions 1 Manual Loads 0 Difficulty Rogue Special Mode None Game No. 39 Rogue 35 Adventurer 4 Explorer 0 Win Type - Total 0 Types 0/0/0/0/0/0/0/0/0 Lore% 6 Gallery% 24 Achievement% 17 Wizard Run 0 Options --------- Layout 1 ASCII 0 Keyboard 0 Movement Mouse Keybinds 0 Fullscreen 2 Font 24/Smallcaps Map View 50x35 Zoom Use 0% Tactical HUD 1 Map Filters NONE Filters NONE Steam 1 RUN: ecd6dd77-7ceb-45e1-b293-f94685ed51d9